[Event "Titled Tuesday Blitz January 10 Late 2023"]
[White "Dimitrov, Atanas"]
[Black "Defend, Balint"]
[WhiteFideId "2901315"]
[BlackFideId "17004853"]
[WhiteElo "2269"]
[BlackElo "1673"]
[Result "0-1"]
[Round "09"]
[TimeControl "180+2"]
[Date "2023.01.10"]
[WhiteClock "0:00:04"]
[BlackClock "0:00:36"]

1. Nf3 {[%clk 0:00:00]}  c5 {[%clk 0:00:00]} 2. c4 {[%clk 0:02:50]}  Nf6 {[%clk 0:02:59]} 3. Nc3 {[%clk 0:02:50]}  d5 {[%clk 0:02:58]} 4. cxd5 {[%clk 0:02:50]}  Nxd5 {[%clk 0:02:55]} 5. e3 {[%clk 0:02:49]}  Nc7 {[%clk 0:02:56]} 6. d4 {[%clk 0:02:47]}  cxd4 {[%clk 0:02:50]} 7. Nxd4 {[%clk 0:02:39]}  e6 {[%clk 0:02:50]} 8. Be2 {[%clk 0:02:40]}  e5 {[%clk 0:02:48]} 9. Qa4+ {[%clk 0:02:38]}  Bd7 {[%clk 0:02:34]} 10. Ndb5 {[%clk 0:02:19]}  Nc6 {[%clk 0:02:29]} 11. Nxc7+ {[%clk 0:02:20]}  Qxc7 {[%clk 0:02:23]} 12. Qh4 {[%clk 0:02:10]}  Be6 {[%clk 0:02:23]} 13. O-O {[%clk 0:01:40]}  Be7 {[%clk 0:02:07]} 14. Qg3 {[%clk 0:01:39]}  O-O {[%clk 0:02:08]} 15. b3 {[%clk 0:01:39]}  a6 {[%clk 0:02:07]} 16. Bb2 {[%clk 0:01:34]}  f6 {[%clk 0:01:57]} 17. Rac1 {[%clk 0:01:34]}  Qa5 {[%clk 0:01:58]} 18. a3 {[%clk 0:01:32]}  Rac8 {[%clk 0:01:53]} 19. b4 {[%clk 0:01:29]}  Qc7 {[%clk 0:01:51]} 20. Rfd1 {[%clk 0:01:29]}  Rfd8 {[%clk 0:01:46]} 21. Bf3 {[%clk 0:01:23]}  Rxd1+ {[%clk 0:01:39]} 22. Rxd1 {[%clk 0:01:19]}  Rd8 {[%clk 0:01:34]} 23. Nd5 {[%clk 0:01:20]}  Bxd5 {[%clk 0:01:34]} 24. Bxd5+ {[%clk 0:01:02]}  Kh8 {[%clk 0:01:25]} 25. h3 {[%clk 0:00:59]}  Nd4 {[%clk 0:01:24]} 26. Bf3 {[%clk 0:00:58]}  Nxf3+ {[%clk 0:01:19]} 27. Qxf3 {[%clk 0:00:22]}  Rxd1+ {[%clk 0:00:59]} 28. Qxd1 {[%clk 0:00:23]}  Kg8 {[%clk 0:00:55]} 29. Qd5+ {[%clk 0:00:24]}  Kf8 {[%clk 0:00:50]} 30. Qe4 {[%clk 0:00:21]}  g6 {[%clk 0:00:50]} 31. g4 {[%clk 0:00:18]}  Qc6 {[%clk 0:00:48]} 32. Qxc6 {[%clk 0:00:19]}  bxc6 {[%clk 0:00:47]} 33. f4 {[%clk 0:00:13]}  exf4 {[%clk 0:00:48]} 34. exf4 {[%clk 0:00:14]}  f5 {[%clk 0:00:40]} 35. Kf2 {[%clk 0:00:15]}  Bd6 {[%clk 0:00:41]} 36. Ke3 {[%clk 0:00:14]}  Kf7 {[%clk 0:00:39]} 37. Bd4 {[%clk 0:00:14]}  Ke6 {[%clk 0:00:39]} 38. Bb6 {[%clk 0:00:12]}  Kd5 {[%clk 0:00:39]} 39. Bd8 {[%clk 0:00:10]}  Kc4 {[%clk 0:00:39]} 40. gxf5 {[%clk 0:00:07]}  gxf5 {[%clk 0:00:38]} 41. Kf3 {[%clk 0:00:07]}  Kb3 {[%clk 0:00:38]} 42. Ke3 {[%clk 0:00:07]}  Kxa3 {[%clk 0:00:37]} 43. b5 {[%clk 0:00:06]}  axb5 {[%clk 0:00:37]} 44. Be7 {[%clk 0:00:04]}  Bxe7 {[%clk 0:00:36]} 0-1


[Site "https://www.chess.com"]

[Event "Titled Tuesday Blitz January 10 Late 2023"]
[White "Jimenez Almeida, Luis David"]
[Black "Gubajdullin, Alexei"]
[WhiteFideId "22242244"]
[BlackFideId "4141202"]
[WhiteElo "2242"]
[BlackElo "2285"]
[Result "1-0"]
[Round "09"]
[TimeControl "180+2"]
[Date "2023.01.10"]
[WhiteClock "0:00:28"]
[BlackClock "0:00:03"]

1. e4 {[%clk 0:00:00]}  g6 {[%clk 0:00:00]} 2. h4 {[%clk 0:03:00]}  h6 {[%clk 0:02:59]} 3. h5 {[%clk 0:03:00]}  g5 {[%clk 0:02:55]} 4. d4 {[%clk 0:02:58]}  d6 {[%clk 0:02:54]} 5. Nc3 {[%clk 0:02:58]}  Nf6 {[%clk 0:02:54]} 6. f4 {[%clk 0:02:58]}  gxf4 {[%clk 0:02:52]} 7. Bxf4 {[%clk 0:02:56]}  Nc6 {[%clk 0:02:52]} 8. Nf3 {[%clk 0:02:56]}  Bg4 {[%clk 0:02:46]} 9. d5 {[%clk 0:02:55]}  Ne5 {[%clk 0:02:39]} 10. Be2 {[%clk 0:02:52]}  Nxh5 {[%clk 0:02:35]} 11. Bxe5 {[%clk 0:02:28]}  dxe5 {[%clk 0:02:08]} 12. Bb5+ {[%clk 0:02:23]}  Bd7 {[%clk 0:02:04]} 13. Rxh5 {[%clk 0:02:18]}  Bxb5 {[%clk 0:02:00]} 14. Nxb5 {[%clk 0:02:07]}  Qd7 {[%clk 0:01:56]} 15. Qd3 {[%clk 0:02:08]}  a6 {[%clk 0:01:55]} 16. Nc3 {[%clk 0:02:05]}  Qg4 {[%clk 0:01:49]} 17. Rh2 {[%clk 0:02:03]}  Qg3+ {[%clk 0:01:49]} 18. Kf1 {[%clk 0:01:35]}  Bg7 {[%clk 0:01:48]} 19. Ne2 {[%clk 0:01:35]}  Qg6 {[%clk 0:01:43]} 20. Kg1 {[%clk 0:01:34]}  Qb6+ {[%clk 0:01:38]} 21. Kh1 {[%clk 0:01:28]}  Qxb2 {[%clk 0:01:36]} 22. Qc3 {[%clk 0:01:27]}  Qb6 {[%clk 0:01:35]} 23. Ng3 {[%clk 0:01:20]}  O-O-O {[%clk 0:01:21]} 24. Nh5 {[%clk 0:01:16]}  Bf8 {[%clk 0:01:17]} 25. Nxe5 {[%clk 0:01:11]}  Rh7 {[%clk 0:01:02]} 26. Nf3 {[%clk 0:00:58]}  f5 {[%clk 0:00:59]} 27. Qe5 {[%clk 0:00:53]}  fxe4 {[%clk 0:00:52]} 28. Qxe4 {[%clk 0:00:48]}  Rf7 {[%clk 0:00:33]} 29. c4 {[%clk 0:00:49]}  Kb8 {[%clk 0:00:24]} 30. Rb1 {[%clk 0:00:44]}  Qa7 {[%clk 0:00:23]} 31. Ne5 {[%clk 0:00:43]}  Rf2 {[%clk 0:00:18]} 32. Nc6+ {[%clk 0:00:38]}  Ka8 {[%clk 0:00:15]} 33. Nxa7 {[%clk 0:00:36]}  c6 {[%clk 0:00:09]} 34. Qe3 {[%clk 0:00:36]}  Rxa2 {[%clk 0:00:06]} 35. dxc6 {[%clk 0:00:29]}  bxc6 {[%clk 0:00:03]} 36. Nxc6 {[%clk 0:00:28]} 1-0


[Site "https://www.chess.com"]

[Event "Titled Tuesday Blitz January 10 Late 2023"]
[White "Ismagilov, Damir"]
[Black "Malka, Samuel"]
[WhiteFideId "34199982"]
[BlackFideId "20643675"]
[WhiteElo "2156"]
[BlackElo "2165"]
[Result "0-1"]
[Round "09"]
[TimeControl "180+2"]
[Date "2023.01.10"]
[WhiteClock "0:00:03"]
[BlackClock "0:00:22"]

1. e4 {[%clk 0:00:00]}  e5 {[%clk 0:00:00]} 2. Nf3 {[%clk 0:02:52]}  Nc6 {[%clk 0:03:00]} 3. Bb5 {[%clk 0:02:52]}  a6 {[%clk 0:03:00]} 4. Ba4 {[%clk 0:02:52]}  Nf6 {[%clk 0:02:59]} 5. O-O {[%clk 0:02:51]}  Be7 {[%clk 0:02:59]} 6. Re1 {[%clk 0:02:51]}  b5 {[%clk 0:03:00]} 7. Bb3 {[%clk 0:02:51]}  O-O {[%clk 0:02:59]} 8. h3 {[%clk 0:02:51]}  Na5 {[%clk 0:02:58]} 9. Nxe5 {[%clk 0:02:47]}  Nxb3 {[%clk 0:02:29]} 10. axb3 {[%clk 0:02:41]}  d5 {[%clk 0:02:24]} 11. Nc6 {[%clk 0:02:42]}  Qd6 {[%clk 0:02:24]} 12. Nxe7+ {[%clk 0:02:26]}  Qxe7 {[%clk 0:01:57]} 13. exd5 {[%clk 0:02:24]}  Qd6 {[%clk 0:01:58]} 14. Nc3 {[%clk 0:02:24]}  b4 {[%clk 0:01:53]} 15. Ne4 {[%clk 0:02:18]}  Qxd5 {[%clk 0:01:49]} 16. Nxf6+ {[%clk 0:01:47]}  gxf6 {[%clk 0:01:33]} 17. d3 {[%clk 0:01:44]}  Bb7 {[%clk 0:01:34]} 18. f3 {[%clk 0:01:38]}  Rfe8 {[%clk 0:01:27]} 19. Bf4 {[%clk 0:01:09]}  Qd4+ {[%clk 0:01:27]} 20. Kh1 {[%clk 0:01:04]}  Qxf4 {[%clk 0:01:25]} 21. Ra5 {[%clk 0:00:50]}  Qg3 {[%clk 0:01:24]} 22. Re2 {[%clk 0:00:51]}  Bc6 {[%clk 0:01:20]} 23. Ra1 {[%clk 0:00:45]}  Re5 {[%clk 0:00:57]} 24. Qd2 {[%clk 0:00:27]}  Rxe2 {[%clk 0:00:42]} 25. Qxe2 {[%clk 0:00:24]}  Re8 {[%clk 0:00:40]} 26. Qd2 {[%clk 0:00:25]}  Re5 {[%clk 0:00:41]} 27. Qxb4 {[%clk 0:00:25]}  Bxf3 {[%clk 0:00:28]} 28. gxf3 {[%clk 0:00:22]}  Qxf3+ {[%clk 0:00:24]} 29. Kh2 {[%clk 0:00:04]}  Re2+ {[%clk 0:00:23]} 30. Kg1 {[%clk 0:00:03]}  Qg2# {[%clk 0:00:22]} 0-1


[Site "https://www.chess.com"]

[Event "Titled Tuesday Blitz January 10 Late 2023"]
[White "Kuznetsov, Felix"]
[Black "Adewumi, Tanitoluwa"]
[WhiteFideId "34147990"]
[BlackFideId "30966396"]
[WhiteElo "2254"]
[BlackElo "2283"]
[Result "1-0"]
[Round "09"]
[TimeControl "180+2"]
[Date "2023.01.10"]
[WhiteClock "0:01:22"]
[BlackClock "0:00:02"]

1. e4 {[%clk 0:00:00]}  c5 {[%clk 0:00:00]} 2. Nf3 {[%clk 0:03:00]}  e6 {[%clk 0:02:51]} 3. b3 {[%clk 0:03:00]}  Nc6 {[%clk 0:02:48]} 4. Bb2 {[%clk 0:03:00]}  Nf6 {[%clk 0:02:42]} 5. Nc3 {[%clk 0:03:00]}  d5 {[%clk 0:02:40]} 6. exd5 {[%clk 0:02:59]}  exd5 {[%clk 0:02:37]} 7. Bb5 {[%clk 0:02:58]}  d4 {[%clk 0:02:36]} 8. Ne2 {[%clk 0:02:58]}  Bd6 {[%clk 0:02:32]} 9. O-O {[%clk 0:02:57]}  O-O {[%clk 0:02:31]} 10. Bxc6 {[%clk 0:02:57]}  bxc6 {[%clk 0:02:30]} 11. Ng3 {[%clk 0:02:56]}  h5 {[%clk 0:02:30]} 12. h3 {[%clk 0:02:56]}  Bxg3 {[%clk 0:02:16]} 13. fxg3 {[%clk 0:02:14]}  Ne4 {[%clk 0:01:59]} 14. Qe1 {[%clk 0:02:15]}  Re8 {[%clk 0:02:00]} 15. d3 {[%clk 0:02:01]}  Nc3 {[%clk 0:01:59]} 16. Qd2 {[%clk 0:01:53]}  Ne2+ {[%clk 0:01:58]} 17. Kh2 {[%clk 0:01:48]}  Qd6 {[%clk 0:01:37]} 18. Rae1 {[%clk 0:01:32]}  Qxg3+ {[%clk 0:01:36]} 19. Kh1 {[%clk 0:01:24]}  Bxh3 {[%clk 0:00:48]} 20. Rxe2 {[%clk 0:01:24]}  Rxe2 {[%clk 0:00:32]} 21. Qxe2 {[%clk 0:01:24]}  Be6 {[%clk 0:00:03]} 22. Qe5 {[%clk 0:01:25]}  Qxe5 {[%clk 0:00:02]} 23. Nxe5 {[%clk 0:01:21]}  Bd5 {[%clk 0:00:02]} 24. Ba3 {[%clk 0:01:22]} 1-0


[Site "https://www.chess.com"]

[Event "Titled Tuesday Blitz January 10 Late 2023"]
[White "Kobalia, Mikhail"]
[Black "Andreev, Eduard"]
[WhiteFideId "4119150"]
[BlackFideId "14103400"]
[WhiteElo "2578"]
[BlackElo "2413"]
[Result "0-1"]
[Round "09"]
[TimeControl "180+2"]
[Date "2023.01.10"]
[WhiteClock "0:00:42"]
[BlackClock "0:00:49"]

1. e4 {[%clk 0:00:00]}  c6 {[%clk 0:00:00]} 2. d4 {[%clk 0:02:43]}  d5 {[%clk 0:03:00]} 3. exd5 {[%clk 0:02:43]}  cxd5 {[%clk 0:03:00]} 4. Bd3 {[%clk 0:02:43]}  Nc6 {[%clk 0:03:01]} 5. c3 {[%clk 0:02:43]}  Qc7 {[%clk 0:03:01]} 6. Ne2 {[%clk 0:02:44]}  Bg4 {[%clk 0:02:59]} 7. O-O {[%clk 0:02:43]}  Nf6 {[%clk 0:02:56]} 8. Qe1 {[%clk 0:02:38]}  e6 {[%clk 0:02:54]} 9. Bf4 {[%clk 0:01:33]}  Bd6 {[%clk 0:02:52]} 10. Bxd6 {[%clk 0:01:32]}  Qxd6 {[%clk 0:02:49]} 11. Ng3 {[%clk 0:01:32]}  O-O {[%clk 0:02:50]} 12. Nd2 {[%clk 0:01:32]}  Rab8 {[%clk 0:02:40]} 13. h3 {[%clk 0:01:30]}  Bh5 {[%clk 0:02:20]} 14. Nxh5 {[%clk 0:01:23]}  Nxh5 {[%clk 0:02:18]} 15. Nf3 {[%clk 0:01:23]}  b5 {[%clk 0:02:19]} 16. a3 {[%clk 0:01:21]}  Na5 {[%clk 0:01:28]} 17. Ne5 {[%clk 0:01:10]}  Nc4 {[%clk 0:01:15]} 18. Rb1 {[%clk 0:01:08]}  f6 {[%clk 0:00:58]} 19. Nf3 {[%clk 0:00:46]}  Nf4 {[%clk 0:00:53]} 20. Bc2 {[%clk 0:00:42]}  a5 {[%clk 0:00:52]} 21. Qd1 {[%clk 0:00:42]}  b4 {[%clk 0:00:49]} 0-1


[Site "https://www.chess.com"]

[Event "Titled Tuesday Blitz January 10 Late 2023"]
[White "Karacsonyi, Gellert"]
[Black "Karttunen, Mika"]
[WhiteFideId "764620"]
[BlackFideId "502081"]
[WhiteElo "2385"]
[BlackElo "2490"]
[Result "0-1"]
[Round "09"]
[TimeControl "180+2"]
[Date "2023.01.10"]
[WhiteClock "0:00:01"]
[BlackClock "0:00:18"]

1. e4 {[%clk 0:00:00]}  c5 {[%clk 0:00:00]} 2. Nf3 {[%clk 0:03:00]}  d6 {[%clk 0:02:58]} 3. d4 {[%clk 0:03:00]}  cxd4 {[%clk 0:02:58]} 4. Nxd4 {[%clk 0:03:01]}  Nf6 {[%clk 0:02:58]} 5. Nc3 {[%clk 0:03:02]}  a6 {[%clk 0:02:58]} 6. Bc4 {[%clk 0:03:00]}  e6 {[%clk 0:02:58]} 7. O-O {[%clk 0:03:01]}  b5 {[%clk 0:02:57]} 8. Bb3 {[%clk 0:03:01]}  Be7 {[%clk 0:02:55]} 9. Qf3 {[%clk 0:03:01]}  Qc7 {[%clk 0:02:51]} 10. Qg3 {[%clk 0:03:00]}  O-O {[%clk 0:02:44]} 11. Bh6 {[%clk 0:03:00]}  Ne8 {[%clk 0:02:36]} 12. Rfe1 {[%clk 0:03:00]}  Kh8 {[%clk 0:02:36]} 13. Bg5 {[%clk 0:03:00]}  Nf6 {[%clk 0:02:20]} 14. Rad1 {[%clk 0:02:59]}  Nc6 {[%clk 0:02:17]} 15. Nxc6 {[%clk 0:02:58]}  Qxc6 {[%clk 0:01:44]} 16. f3 {[%clk 0:02:54]}  Bb7 {[%clk 0:01:44]} 17. Ne2 {[%clk 0:02:55]}  Qc5+ {[%clk 0:01:41]} 18. Kh1 {[%clk 0:02:54]}  Nh5 {[%clk 0:01:33]} 19. Qh3 {[%clk 0:02:35]}  Qxg5 {[%clk 0:01:30]} 20. g3 {[%clk 0:02:10]}  f5 {[%clk 0:01:30]} 21. Nd4 {[%clk 0:02:08]}  fxe4 {[%clk 0:01:23]} 22. Nxe6 {[%clk 0:01:59]}  exf3 {[%clk 0:00:42]} 23. Nxg5 {[%clk 0:01:59]}  f2+ {[%clk 0:00:41]} 24. Ne4 {[%clk 0:01:04]}  Nf6 {[%clk 0:00:41]} 25. Qe6 {[%clk 0:01:04]}  Rae8 {[%clk 0:00:36]} 26. Re2 {[%clk 0:00:34]}  Nxe4 {[%clk 0:00:26]} 27. Rxe4 {[%clk 0:00:22]}  Bg5 {[%clk 0:00:23]} 28. Qd5 {[%clk 0:00:20]}  Rxe4 {[%clk 0:00:21]} 29. Qxb7 {[%clk 0:00:03]}  Re1+ {[%clk 0:00:18]} 30. Rxe1 {[%clk 0:00:02]}  fxe1=Q+ {[%clk 0:00:18]} 31. Kg2 {[%clk 0:00:01]}  Qf1# {[%clk 0:00:18]} 0-1


[Site "https://www.chess.com"]

[Event "Titled Tuesday Blitz January 10 Late 2023"]
[White "Domingo Nunez, Ruben"]
[Black "Yang, Kevin"]
[WhiteFideId "22245570"]
[BlackFideId "30908485"]
[WhiteElo "2416"]
[BlackElo "2096"]
[Result "1-0"]
[Round "09"]
[TimeControl "180+2"]
[Date "2023.01.10"]
[WhiteClock "0:00:56"]
[BlackClock "0:00:18"]

1. e4 {[%clk 0:00:00]}  e6 {[%clk 0:00:00]} 2. Nf3 {[%clk 0:03:00]}  a6 {[%clk 0:02:58]} 3. Nc3 {[%clk 0:02:59]}  d5 {[%clk 0:02:57]} 4. e5 {[%clk 0:03:00]}  c5 {[%clk 0:02:56]} 5. g3 {[%clk 0:02:59]}  Nc6 {[%clk 0:02:55]} 6. Bg2 {[%clk 0:02:59]}  Qc7 {[%clk 0:02:52]} 7. Qe2 {[%clk 0:02:59]}  Nd4 {[%clk 0:02:52]} 8. Nxd4 {[%clk 0:02:59]}  cxd4 {[%clk 0:02:47]} 9. Nb1 {[%clk 0:02:59]}  Qxc2 {[%clk 0:02:46]} 10. O-O {[%clk 0:02:59]}  Ne7 {[%clk 0:02:43]} 11. Na3 {[%clk 0:02:58]}  Qc7 {[%clk 0:02:39]} 12. d3 {[%clk 0:02:56]}  Nc6 {[%clk 0:02:32]} 13. Bf4 {[%clk 0:02:47]}  h6 {[%clk 0:02:31]} 14. h4 {[%clk 0:02:47]}  Be7 {[%clk 0:02:30]} 15. Rfe1 {[%clk 0:02:46]}  Qa5 {[%clk 0:02:20]} 16. Qg4 {[%clk 0:02:37]}  g6 {[%clk 0:02:01]} 17. Nc2 {[%clk 0:02:15]}  Qb5 {[%clk 0:01:53]} 18. Qe2 {[%clk 0:02:08]}  g5 {[%clk 0:01:48]} 19. hxg5 {[%clk 0:02:04]}  hxg5 {[%clk 0:01:30]} 20. Bc1 {[%clk 0:02:01]}  Bd7 {[%clk 0:01:31]} 21. b3 {[%clk 0:02:01]}  Nb4 {[%clk 0:01:26]} 22. Nxb4 {[%clk 0:01:59]}  Bxb4 {[%clk 0:01:20]} 23. Rd1 {[%clk 0:01:52]}  Bc3 {[%clk 0:01:18]} 24. Rb1 {[%clk 0:01:51]}  O-O-O {[%clk 0:00:47]} 25. Bxg5 {[%clk 0:01:48]}  Rdg8 {[%clk 0:00:46]} 26. Be7 {[%clk 0:01:47]}  Kb8 {[%clk 0:00:46]} 27. a4 {[%clk 0:01:42]}  Qb6 {[%clk 0:00:37]} 28. Qf3 {[%clk 0:01:41]}  Be8 {[%clk 0:00:34]} 29. Qf6 {[%clk 0:01:37]}  Qc6 {[%clk 0:00:31]} 30. Rdc1 {[%clk 0:01:26]}  Qd7 {[%clk 0:00:23]} 31. b4 {[%clk 0:01:23]}  Rh7 {[%clk 0:00:21]} 32. Bc5 {[%clk 0:01:20]}  Rg6 {[%clk 0:00:20]} 33. Qf4 {[%clk 0:01:16]}  Qxa4 {[%clk 0:00:20]} 34. Bxd4 {[%clk 0:01:16]}  Bxd4 {[%clk 0:00:19]} 35. Qxd4 {[%clk 0:01:13]}  Bc6 {[%clk 0:00:18]} 36. Ra1 {[%clk 0:01:14]}  Qb5 {[%clk 0:00:18]} 37. Ra5 {[%clk 0:00:56]} 1-0


[Site "https://www.chess.com"]

[Event "Titled Tuesday Blitz January 10 Late 2023"]
[White "Mikhailov, Viacheslav"]
[Black "TheKnightOfBosnia"]
[WhiteFideId "4187369"]
[WhiteElo "2428"]
[BlackElo "2537"]
[Result "1-0"]
[Round "09"]
[TimeControl "180+2"]
[Date "2023.01.10"]
[WhiteClock "0:00:18"]
[BlackClock "0:00:11"]

1. Nf3 {[%clk 0:00:00]}  Nf6 {[%clk 0:00:00]} 2. g3 {[%clk 0:02:59]}  b6 {[%clk 0:02:59]} 3. Bg2 {[%clk 0:02:59]}  Bb7 {[%clk 0:03:00]} 4. O-O {[%clk 0:03:00]}  g6 {[%clk 0:03:00]} 5. d3 {[%clk 0:03:01]}  Bg7 {[%clk 0:03:01]} 6. c4 {[%clk 0:03:01]}  O-O {[%clk 0:03:01]} 7. Nc3 {[%clk 0:03:02]}  e6 {[%clk 0:03:01]} 8. Bf4 {[%clk 0:03:02]}  a6 {[%clk 0:03:01]} 9. Rc1 {[%clk 0:03:01]}  d5 {[%clk 0:03:01]} 10. cxd5 {[%clk 0:03:02]}  exd5 {[%clk 0:03:01]} 11. Qd2 {[%clk 0:03:02]}  Nbd7 {[%clk 0:03:01]} 12. Ne5 {[%clk 0:02:50]}  Nxe5 {[%clk 0:02:59]} 13. Bxe5 {[%clk 0:02:49]}  c5 {[%clk 0:02:55]} 14. d4 {[%clk 0:02:50]}  Rc8 {[%clk 0:02:51]} 15. dxc5 {[%clk 0:02:43]}  bxc5 {[%clk 0:02:41]} 16. b3 {[%clk 0:02:34]}  Ne4 {[%clk 0:02:42]} 17. Nxe4 {[%clk 0:02:26]}  dxe4 {[%clk 0:02:00]} 18. Qxd8 {[%clk 0:02:24]}  Rfxd8 {[%clk 0:01:58]} 19. Bxg7 {[%clk 0:02:19]}  Kxg7 {[%clk 0:01:59]} 20. Rfd1 {[%clk 0:02:18]}  Rxd1+ {[%clk 0:01:59]} 21. Rxd1 {[%clk 0:02:19]}  c4 {[%clk 0:01:59]} 22. bxc4 {[%clk 0:02:20]}  Rxc4 {[%clk 0:01:58]} 23. h4 {[%clk 0:02:01]}  Rc2 {[%clk 0:01:58]} 24. Rd7 {[%clk 0:01:39]}  Bc6 {[%clk 0:01:56]} 25. Rc7 {[%clk 0:01:39]}  Kf6 {[%clk 0:01:55]} 26. e3 {[%clk 0:01:39]}  Ba4 {[%clk 0:01:44]} 27. Rxc2 {[%clk 0:01:35]}  Bxc2 {[%clk 0:01:18]} 28. Kf1 {[%clk 0:01:36]}  Ke5 {[%clk 0:01:17]} 29. Ke1 {[%clk 0:01:31]}  Kd5 {[%clk 0:01:17]} 30. Kd2 {[%clk 0:01:32]}  Bb1 {[%clk 0:01:14]} 31. a3 {[%clk 0:01:31]}  a5 {[%clk 0:01:14]} 32. Kc3 {[%clk 0:01:32]}  Bd3 {[%clk 0:01:13]} 33. g4 {[%clk 0:01:31]}  h6 {[%clk 0:01:05]} 34. g5 {[%clk 0:01:06]}  hxg5 {[%clk 0:00:58]} 35. hxg5 {[%clk 0:01:04]}  Bb5 {[%clk 0:00:57]} 36. Bh3 {[%clk 0:01:05]}  Ke5 {[%clk 0:00:52]} 37. Bc8 {[%clk 0:01:03]}  Kd5 {[%clk 0:00:49]} 38. Bb7+ {[%clk 0:00:59]}  Ke5 {[%clk 0:00:45]} 39. Ba8 {[%clk 0:00:43]}  Bd3 {[%clk 0:00:45]} 40. f4+ {[%clk 0:00:31]}  Kf5 {[%clk 0:00:31]} 41. Kd4 {[%clk 0:00:28]}  Bb1 {[%clk 0:00:21]} 42. Bd5 {[%clk 0:00:29]}  f6 {[%clk 0:00:20]} 43. Bxe4+ {[%clk 0:00:29]}  Bxe4 {[%clk 0:00:17]} 44. gxf6 {[%clk 0:00:17]}  Kxf6 {[%clk 0:00:15]} 45. Kxe4 {[%clk 0:00:17]}  Ke6 {[%clk 0:00:10]} 46. Kf3 {[%clk 0:00:18]}  Kd5 {[%clk 0:00:10]} 47. e4+ {[%clk 0:00:18]}  Kd4 {[%clk 0:00:10]} 48. e5 {[%clk 0:00:18]}  Kd5 {[%clk 0:00:10]} 49. Kg4 {[%clk 0:00:18]}  a4 {[%clk 0:00:11]} 50. Kg5 {[%clk 0:00:18]}  Kc5 {[%clk 0:00:11]} 51. Kxg6 {[%clk 0:00:18]} 1-0


[Site "https://www.chess.com"]

[Event "Titled Tuesday Blitz January 10 Late 2023"]
[White "Winterberg, Lukas"]
[Black "Jaferian, Koosha"]
[WhiteFideId "24622702"]
[BlackFideId "12507440"]
[WhiteElo "2402"]
[BlackElo "2233"]
[Result "0-1"]
[Round "09"]
[TimeControl "180+2"]
[Date "2023.01.10"]
[WhiteClock "0:00:14"]
[BlackClock "0:00:15"]

1. e4 {[%clk 0:00:00]}  c6 {[%clk 0:00:00]} 2. d4 {[%clk 0:03:00]}  d5 {[%clk 0:03:00]} 3. e5 {[%clk 0:02:59]}  Bf5 {[%clk 0:03:01]} 4. h4 {[%clk 0:03:00]}  h5 {[%clk 0:03:00]} 5. Bd3 {[%clk 0:02:59]}  Bxd3 {[%clk 0:03:00]} 6. Qxd3 {[%clk 0:02:59]}  Qa5+ {[%clk 0:03:00]} 7. Nd2 {[%clk 0:03:00]}  e6 {[%clk 0:02:59]} 8. Ne2 {[%clk 0:02:52]}  Nh6 {[%clk 0:02:58]} 9. O-O {[%clk 0:02:52]}  Nf5 {[%clk 0:02:57]} 10. Nf3 {[%clk 0:02:50]}  Be7 {[%clk 0:02:56]} 11. b3 {[%clk 0:02:48]}  Nxh4 {[%clk 0:02:55]} 12. c4 {[%clk 0:02:47]}  Nf5 {[%clk 0:02:49]} 13. Bg5 {[%clk 0:02:47]}  Qd8 {[%clk 0:02:42]} 14. Bxe7 {[%clk 0:02:41]}  Qxe7 {[%clk 0:02:37]} 15. Rac1 {[%clk 0:02:35]}  g5 {[%clk 0:02:38]} 16. cxd5 {[%clk 0:02:34]}  g4 {[%clk 0:02:29]} 17. Nd2 {[%clk 0:02:25]}  h4 {[%clk 0:02:01]} 18. Ne4 {[%clk 0:01:49]}  Nd7 {[%clk 0:01:45]} 19. dxc6 {[%clk 0:01:44]}  bxc6 {[%clk 0:01:42]} 20. Rxc6 {[%clk 0:01:38]}  h3 {[%clk 0:01:42]} 21. g3 {[%clk 0:01:37]}  Rd8 {[%clk 0:01:43]} 22. Rc7 {[%clk 0:01:28]}  Qb4 {[%clk 0:01:40]} 23. Kh2 {[%clk 0:01:27]}  Nxe5 {[%clk 0:01:37]} 24. Nf6+ {[%clk 0:01:04]}  Kf8 {[%clk 0:01:24]} 25. Qe4 {[%clk 0:01:04]}  Nf3+ {[%clk 0:01:22]} 26. Kh1 {[%clk 0:01:04]}  Nd2 {[%clk 0:01:21]} 27. Qxg4 {[%clk 0:01:05]}  Nxf1 {[%clk 0:01:13]} 28. Nd7+ {[%clk 0:00:40]}  Rxd7 {[%clk 0:01:10]} 29. Rc8+ {[%clk 0:00:31]}  Ke7 {[%clk 0:00:53]} 30. Rxh8 {[%clk 0:00:31]}  Qb7+ {[%clk 0:00:50]} 31. f3 {[%clk 0:00:32]}  Kd6 {[%clk 0:00:48]} 32. Qf4+ {[%clk 0:00:30]}  Kc6 {[%clk 0:00:30]} 33. Kg1 {[%clk 0:00:26]}  N1e3 {[%clk 0:00:30]} 34. g4 {[%clk 0:00:26]}  Qb4 {[%clk 0:00:26]} 35. Kf2 {[%clk 0:00:26]}  Nd1+ {[%clk 0:00:25]} 36. Kf1 {[%clk 0:00:25]}  Nfe3+ {[%clk 0:00:18]} 37. Kg1 {[%clk 0:00:17]}  Qe1+ {[%clk 0:00:18]} 38. Kh2 {[%clk 0:00:16]}  Qxe2+ {[%clk 0:00:18]} 39. Kxh3 {[%clk 0:00:16]}  Qg2+ {[%clk 0:00:12]} 40. Kh4 {[%clk 0:00:16]}  Qh1+ {[%clk 0:00:13]} 41. Kg5 {[%clk 0:00:17]}  Qxh8 {[%clk 0:00:13]} 42. Qe4+ {[%clk 0:00:17]}  Nd5 {[%clk 0:00:14]} 43. Qc2+ {[%clk 0:00:16]}  Kb7 {[%clk 0:00:14]} 44. Qxd1 {[%clk 0:00:16]}  Qg7+ {[%clk 0:00:14]} 45. Kh4 {[%clk 0:00:17]}  Qh6+ {[%clk 0:00:14]} 46. Kg3 {[%clk 0:00:17]}  Qf4+ {[%clk 0:00:15]} 47. Kg2 {[%clk 0:00:14]}  Ne3+ {[%clk 0:00:15]} 0-1


[Site "https://www.chess.com"]